bitfinex-derivatives/quotes_ETHF0:USTF0_20250430
["timestamp","ask_amount","ask_price","bid_price","bid_amount"]
[1746054210965,3.52307,1796.0,1795.9,41.91343]
[1746054211273,7.35107,1796.0,1795.9,41.91343]
[1746054211459,7.35107,1796.0,1795.9,40.8]
[1746054211664,7.35107,1796.0,1795.9,41.91348]
[1746054213974,7.35107,1796.0,1795.9,40.8]
[1746054214172,7.35107,1796.0,1795.9,41.91348]
[1746054215568,7.35107,1796.0,1795.9,1.11348]
[1746054215871,1.1136,1795.7,1795.6,4.32142]
[1746054216078,1.11366,1795.6,1795.5,1.11368]
[1746054216575,1.11366,1795.6,1795.5,41.91368]
[1746054217168,6.53956,1795.6,1795.5,1.11368]
[1746054217572,6.53956,1795.6,1795.5,41.91368]
[1746054220380,6.53956,1795.6,1795.5,1.11368]
[1746054226579,1.11372,1795.5,1795.4,41.91372]
[1746054226784,1.5773,1795.5,1795.4,41.91379]
[1746054226986,1.5773,1795.5,1795.4,43.92189]
[1746054227995,1.1137,1795.6,1795.5,1.11372]
[1746054228200,1.5773,1795.6,1795.5,1.11372]
[1746054228399,1.5773,1795.6,1795.5,2.28822]
[1746054229799,3.579,1795.9,1795.8,1.11354]
[1746054230100,2.74698,1795.9,1795.8,1.11354]
[1746054230400,2.74698,1795.9,1795.8,41.91354]
[1746054235804,1.6335,1795.9,1795.8,41.91354]
[1746054236004,2.74698,1795.9,1795.8,41.91354]
[1746054236804,1.6335,1795.9,1795.8,41.91354]
[1746054237206,1.6335,1795.9,1795.8,43.08764]
[1746054240313,0.8071,1796.0,1795.9,1.11348]
[1746054240495,2.5241,1796.0,1795.9,2.28758]
[1746054240899,0.8592,1796.3,1796.0,2.78354]
[1746054241103,2.5577,1796.3,1796.2,1.11329]
[1746054244310,6.3857,1796.3,1796.2,1.11329]
[1746054244812,7.49893,1796.3,1796.2,1.11329]
[1746054245003,1.11339,1796.1,1796.0,1.11334]
[1746054246008,1.7333,1796.1,1796.0,1.11334]
[1746054246204,5.5613,1796.1,1796.0,1.11334]
[1746054246611,6.67465,1796.1,1796.0,1.11334]
[1746054248414,1.11348,1796.0,1795.9,1.11343]
[1746054248716,2.4417,1796.0,1795.9,1.11343]
[1746054249103,1.6178,1796.0,1795.9,5.11383]
[1746054249309,1.6178,1796.0,1795.9,6.28683]
[1746054249614,1.6178,1796.0,1795.9,3.07903]
[1746054250004,1.6178,1796.0,1795.9,8.07903]
[1746054250209,1.6111,1796.2,1796.1,1.11335]
[1746054250413,3.2289,1796.2,1796.1,1.11335]
[1746054251220,4.34219,1796.2,1796.1,1.11335]
[1746054253005,1.11341,1796.1,1796.0,1.11336]
[1746054253205,2.77611,1796.1,1796.0,1.11336]
[1746054253919,1.11354,1795.8,1795.7,3.2078]
[1746054254129,1.11362,1795.7,1795.6,1.11364]
[1746054254415,1.94682,1795.7,1795.6,40.8]
[1746054254603,1.11366,1795.6,1795.5,1.11367]
[1746054254806,2.5472,1795.6,1795.5,1.11367]
[1746054255014,2.5472,1795.6,1795.5,41.91367]
[1746054255213,3.66086,1795.6,1795.5,41.91367]
[1746054255615,2.5472,1795.6,1795.5,41.91367]
[1746054255814,3.66086,1795.6,1795.5,41.91367]
[1746054256413,2.5472,1795.6,1795.5,41.91367]
[1746054257013,2.5472,1795.6,1795.5,40.8]
[1746054257314,1.11375,1795.5,1795.3,1.1138]
[1746054257521,2.69065,1795.5,1795.4,1.11379]
[1746054257816,2.69065,1795.5,1795.4,41.91379]
[1746054258011,1.5769,1795.5,1795.4,41.91379]
[1746054258517,1.5769,1795.5,1795.4,45.12159]
[1746054258815,0.8332,1795.7,1795.6,1.11366]
[1746054259017,2.4101,1795.7,1795.6,1.11366]
[1746054259319,4.32117,1796.1,1796.0,1.11341]
[1746054260116,1.11341,1796.0,1795.9,1.11344]
[1746054260321,1.97571,1796.0,1795.9,1.11344]
[1746054260508,1.97571,1796.0,1795.7,4.7635]
[1746054260509,3.828,1796.1,1796.0,1.11341]
[1746054260705,4.6326,1796.1,1795.8,3.2078]
[1746054260913,5.746,1796.1,1795.9,1.11346]
[1746054261119,1.918,1796.1,1796.0,1.11341]
[1746054261612,1.11345,1796.0,1795.7,0.8074]
[1746054261817,2.84445,1796.0,1795.9,1.11348]
[1746054262115,1.11349,1795.9,1795.8,1.11351]
[1746054262315,2.84449,1795.9,1795.8,1.11351]
[1746054264119,1.731,1795.9,1795.6,3.2078]
[1746054264416,1.11362,1795.7,1795.6,1.11365]
[1746054264815,2.74142,1795.7,1795.6,1.11365]
[1746054265217,6.56942,1795.7,1795.5,1.11367]
[1746054265418,1.6278,1795.6,1795.5,1.11367]
[1746054265719,2.74146,1795.6,1795.5,1.11367]
[1746054265921,1.11372,1795.5,1795.4,41.91375]
[1746054266222,2.4856,1795.5,1795.4,41.91375]
[1746054268319,1.11386,1795.3,1795.2,1.1139]
[1746054268515,1.6372,1795.4,1795.2,1.1139]
[1746054268824,2.75103,1795.4,1795.3,41.91385]
[1746054269117,6.57903,1795.4,1795.3,40.8]
[1746054270220,1.11391,1795.2,1795.1,4.32172]
[1746054270624,1.11391,1795.2,1795.1,45.12172]
[1746054271015,2.78417,1795.3,1795.2,1.11391]
[1746054271215,6.61217,1795.3,1795.1,45.12171]
[1746054271421,1.6703,1795.2,1795.1,45.12171]
[1746054272918,1.6703,1795.2,1794.8,3.2078]
[1746054273118,1.11405,1795.0,1794.9,1.11408]
[1746054273324,1.11403,1795.0,1794.9,1.11408]
[1746054273523,2.78293,1795.0,1794.9,41.91408]
[1746054274623,1.6689,1795.0,1794.9,1.11408]
[1746054274820,1.11425,1794.7,1794.6,3.2078]
[1746054275021,1.11421,1794.8,1794.6,4.32208]
[1746054275222,0.8095,1794.7,1794.6,1.11428]
[1746054275424,2.4784,1794.7,1794.6,1.11428]
[1746054275923,3.59262,1794.7,1794.6,1.11428]
[1746054276812,2.4784,1794.7,1794.6,1.11428]
[1746054279229,0.8498,1794.9,1794.8,1.11416]
[1746054279426,1.9639,1794.9,1794.8,1.11416]
[1746054279823,1.11416,1794.8,1794.7,1.11417]
[1746054280019,2.78936,1794.8,1794.7,1.11417]
[1746054280619,3.63326,1794.8,1794.7,1.11417]
[1746054281225,7.46126,1794.8,1794.7,1.11417]
[1746054283729,6.3471,1794.8,1794.5,3.2078]
[1746054283930,1.6859,1794.7,1794.6,1.11428]
[1746054286128,5.5139,1794.7,1794.6,1.11428]
[1746054287136,1.6859,1794.7,1794.6,1.11428]
[1746054288430,5.5139,1794.7,1794.6,1.11428]
[1746054290228,1.6859,1794.7,1794.6,1.11428]
[1746054295237,2.80012,1794.7,1794.6,1.11428]
[1746054298327,1.6859,1794.7,1794.6,1.11428]
[1746054298733,2.80012,1794.7,1794.6,1.11428]
[1746054298932,1.6859,1794.7,1794.6,1.11428]
[1746054299439,2.80012,1794.7,1794.6,1.11428]
[1746054300335,1.6859,1794.7,1794.6,1.11428]
[1746054300540,1.6859,1794.7,1794.6,3.11698]
[1746054301640,0.8439,1794.8,1794.7,1.11422]
[1746054301840,2.4495,1794.8,1794.7,1.11422]
[1746054302233,3.56366,1794.8,1794.7,1.11422]
[1746054304239,1.11426,1794.7,1794.6,1.11422]
[1746054304440,2.78116,1794.7,1794.6,1.11422]
[1746054305344,2.78112,1794.7,1794.6,1.11422]
[1746054307146,1.6669,1794.7,1794.6,1.11422]
[1746054308846,2.78112,1794.7,1794.6,1.11422]
[1746054311935,1.6669,1794.7,1794.6,1.11422]
[1746054314350,2.78112,1794.7,1794.6,1.11422]
[1746054314848,1.6669,1794.7,1794.6,1.11422]
[1746054316552,4.32182,1795.1,1794.7,1.11422]
[1746054316745,2.5142,1795.0,1794.9,1.1141]
[1746054317154,3.62823,1795.0,1794.9,1.1141]
[1746054317952,2.5142,1795.0,1794.9,1.1141]
[1746054319752,2.5142,1795.0,1794.8,1.1141]
[1746054320053,1.6235,1794.9,1794.8,1.1141]
[1746054320750,2.73761,1794.9,1794.8,1.1141]
[1746054325150,1.11416,1794.8,1794.7,4.32198]
[1746054325351,3.58736,1794.8,1794.7,1.11418]
[1746054326058,7.41536,1794.8,1794.7,1.11418]
[1746054326357,6.3012,1794.8,1794.7,1.11418]
[1746054326556,5.4852,1794.8,1794.7,4.32198]
[1746054326760,3.828,1794.8,1794.7,9.32198]
[1746054327251,0.8053,1795.0,1794.9,1.1141]
[1746054327454,0.8053,1795.0,1794.9,4.3219]
[1746054327855,0.8053,1795.0,1794.9,5.1931]
[1746054328052,3.588,1795.4,1794.9,9.079]
[1746054328258,1.7322,1795.3,1795.2,1.11391]
[1746054328453,1.7322,1795.3,1795.2,4.32171]
[1746054328656,0.8092,1795.4,1795.3,1.11385]
[1746054328860,0.8092,1795.4,1795.3,2.28835]
[1746054329055,0.8092,1795.4,1795.3,43.08835]
[1746054330054,0.8092,1795.4,1795.3,41.91385]
[1746054330252,1.6303,1795.4,1795.3,41.91385]
[1746054330551,3.3708,1795.4,1795.3,41.91385]
[1746054336357,4.48459,1795.4,1795.3,41.91385]
[1746054336961,3.3708,1795.4,1795.3,41.91385]
[1746054339166,2.5497,1795.4,1795.3,41.91385]
[1746054339561,2.5497,1795.4,1795.3,43.08955]
[1746054340459,2.5497,1795.4,1795.3,41.91385]
[1746054341566,3.66349,1795.4,1795.3,41.91385]
[1746054342166,7.49149,1795.4,1795.3,41.91385]
[1746054343166,3.66349,1795.4,1795.3,41.91385]
[1746054343867,3.66349,1795.4,1795.3,40.8]
[1746054344070,7.49149,1795.4,1795.3,40.8]
[1746054344466,7.49149,1795.4,1795.3,41.91385]
[1746054344769,7.49149,1795.4,1795.3,40.8]
[1746054344969,7.49149,1795.4,1795.3,41.91385]
[1746054345267,1.11385,1795.3,1795.2,1.1139]
[1746054345466,3.54975,1795.3,1795.2,1.1139]
[1746054346067,7.37775,1795.3,1795.2,1.1139]
[1746054346467,6.2639,1795.3,1795.2,1.1139]
[1746054347066,2.4359,1795.3,1795.2,1.1139]
[1746054349673,1.6029,1795.3,1795.2,1.1139]
[1746054350673,2.71675,1795.3,1795.2,1.1139]
[1746054351872,1.6029,1795.3,1795.2,1.1139]
[1746054352265,5.4309,1795.3,1795.2,1.1139]
[1746054352668,5.4309,1795.3,1795.1,41.91392]
[1746054352874,3.58771,1795.2,1795.1,1.11392]
[1746054353272,7.41571,1795.2,1795.1,41.91392]
[1746054355062,6.3018,1795.2,1795.1,41.91392]
[1746054355976,7.41571,1795.2,1795.1,41.91392]
[1746054356275,3.58771,1795.2,1795.1,41.91392]
[1746054357976,2.4738,1795.2,1795.1,41.91392]
[1746054358379,3.58771,1795.2,1795.1,41.91392]
[1746054359977,1.6191,1795.2,1795.1,41.91392]
[1746054362381,2.73301,1795.2,1795.1,41.91392]
[1746054363481,1.6191,1795.2,1795.1,41.91392]
[1746054363884,2.73301,1795.2,1795.1,41.91392]
[1746054365284,1.6191,1795.2,1795.1,41.91392]
[1746054366472,1.6191,1795.2,1795.1,43.09002]
[1746054366682,4.3952,1795.4,1795.3,1.11385]
[1746054366876,2.4146,1795.4,1795.3,1.11385]
[1746054368788,2.4146,1795.4,1795.3,41.91385]
[1746054370286,3.52839,1795.4,1795.3,41.91385]
[1746054370587,2.4146,1795.4,1795.3,41.91385]
[1746054375793,0.8291,1795.6,1795.3,41.91385]
[1746054376001,21.55189339,1796.2,1795.5,2.78432]
[1746054376299,1.95752,1796.1,1796.0,1.11339]
[1746054376693,0.8441,1796.1,1796.0,1.11339]
[1746054376999,18.34409339,1796.2,1796.1,1.11335]
[1746054377000,14.76009339,1796.2,1796.1,1.11335]
[1746054377493,14.76009339,1796.2,1796.1,2.85265]
[1746054378698,1.6715,1796.3,1796.2,1.11329]
[1746054379087,7.1432,1796.3,1796.2,1.11329]
[1746054379293,8.25643,1796.3,1796.2,1.11329]
[1746054379793,7.1432,1796.3,1796.0,3.2078]
[1746054379999,1.11335,1796.1,1796.0,4.32115]
[1746054380195,4.94135,1796.1,1796.0,4.32117]
[1746054380500,3.828,1796.1,1796.0,1.11337]
[1746054380700,4.94135,1796.1,1796.0,1.11337]
[1746054380904,5.4062,1796.1,1796.0,1.11337]
[1746054382303,6.51955,1796.1,1796.0,1.11337]
[1746054382504,5.4062,1796.1,1796.0,1.11337]
[1746054385005,5.4062,1796.1,1796.0,4.32117]
[1746054385207,1.5782,1796.1,1796.0,4.32117]
[1746054388107,6.5782,1796.1,1795.2,3.583]
[1746054388304,3.2078,1795.6,1795.4,1.11374]
[1746054388611,2.79134,1795.5,1795.4,1.11379]
[1746054388909,1.1138,1795.4,1795.3,1.11383]
[1746054389098,5.4644,1795.4,1795.3,1.11383]
[1746054390211,1.6364,1795.4,1795.3,1.11383]
[1746054391211,5.4644,1795.4,1795.3,1.11383]
[1746054391506,2.3015,1795.4,1795.3,2.77323]
[1746054392212,0.8108,1795.5,1795.4,1.11379]
[1746054392405,0.8108,1795.5,1795.4,5.98099]
[1746054393009,0.8108,1795.5,1795.4,46.78099]
[1746054396003,0.8108,1795.5,1795.4,45.12159]
[1746054403009,1.92452,1795.5,1795.4,45.12159]
[1746054403198,4.6388,1795.5,1795.4,4.32159]
[1746054403903,6.3106,1795.5,1795.4,4.32159]
[1746054405101,4.6388,1795.5,1795.4,5.99619]
[1746054405301,0.8108,1795.5,1795.4,4.32159]
[1746054405911,2.4826,1795.5,1795.4,4.32159]
[1746054410118,6.3106,1795.5,1795.4,4.32159]
[1746054411214,2.4826,1795.5,1795.4,4.32159]
[1746054412212,2.4826,1795.5,1795.4,6.03109]
[1746054412408,0.8108,1795.5,1795.4,6.03109]
[1746054412914,2.4655,1795.7,1795.6,1.11366]
[1746054413109,2.4805,1795.7,1795.6,1.11366]
[1746054417519,2.4805,1795.7,1795.6,4.32146]
[1746054418513,4.70119,1796.4,1796.3,1.11318]
[1746054419023,9.70119,1796.4,1796.3,1.11318]
[1746054419225,13.52919,1796.4,1796.3,1.11318]
[1746054420416,16.73479,1796.4,1796.3,1.11318]
[1746054421217,1.11329,1796.3,1796.2,1.11325]
[1746054421422,2.69519,1796.3,1796.2,1.11325]
[1746054421622,7.69519,1796.3,1796.2,1.11325]
[1746054422124,11.52319,1796.3,1796.2,1.11325]
[1746054422323,8.6177,1796.3,1796.2,1.11325]
[1746054422520,9.73093,1796.3,1796.2,1.11325]
[1746054423326,6.52313,1796.3,1796.2,1.11325]
[1746054423826,5.4099,1796.3,1796.2,1.11325]
[1746054426516,3.828,1796.3,1796.2,7.85505]
[1746054427123,0.7916,1796.4,1796.3,1.11323]
[1746054427423,0.7916,1796.4,1796.3,2.85503]
[1746054429224,4.6196,1796.4,1796.3,2.85503]
[1746054429427,5.4528,1796.4,1796.3,2.85503]
[1746054431226,4.6196,1796.4,1796.3,6.06283]
[1746054432522,3.828,1796.4,1796.3,14.64983]
[1746054433228,1.7385,1796.7,1796.6,1.11304]
[1746054433828,1.7385,1796.7,1796.6,2.82914]
[1746054434129,5.5665,1796.7,1796.6,2.82914]
[1746054436931,5.5665,1796.7,1796.6,1.11304]
[1746054439242,3.828,1796.7,1796.6,1.11304]
[1746054439435,3.828,1796.7,1796.6,2.70154]
[1746054441532,3.828,1796.7,1796.6,6.28754]
[1746054443240,0.8488,1796.8,1796.7,1.11298]
[1746054443425,1.695,1796.9,1796.7,6.72958]
[1746054443740,1.695,1796.9,1796.8,1.11292]
[1746054444036,1.695,1796.9,1796.8,2.73602]
[1746054444236,5.523,1796.9,1796.8,2.73602]
[1746054444934,3.828,1796.9,1796.8,2.73602]
[1746054446035,2.35616,1796.9,1796.8,2.73602]
[1746054446237,0.59156,1796.9,1796.8,2.73602]
[1746054446434,1e-05,1796.9,1796.8,2.73602]
[1746054447135,1.6605,1797.1,1797.0,1.11279]
[1746054447437,2.78113,1797.6,1797.0,1.11279]
[1746054447438,5.876,1798.0,1797.0,8.77168]
[1746054447631,2.78045,1798.0,1797.5,3.2078]
[1746054447830,3.2078,1797.9,1797.6,40.8]
[1746054448136,1.11232,1797.8,1797.6,41.91238]
[1746054448331,4.94028,1797.9,1797.7,1.11236]
[1746054448532,8.53728,1797.9,1797.7,1.11236]
[1746054448735,1.6764,1797.8,1797.7,1.11236]
[1746054449338,6.6764,1797.8,1797.7,1.11236]
[1746054450239,10.5044,1797.8,1797.7,1.11236]
[1746054450539,12.0983,1797.8,1797.7,1.11236]
[1746054451038,7.0983,1797.8,1797.7,1.11236]
[1746054452636,7.0983,1797.8,1797.7,2.74246]
[1746054453036,4.6637,1797.8,1797.7,2.74246]
[1746054453836,4.6637,1797.8,1797.7,1.11236]
[1746054454446,5.776,1797.8,1797.7,1.11236]
[1746054454637,4.6637,1797.8,1797.7,1.11236]
[1746054455040,6.3551,1797.8,1797.7,1.11236]
[1746054457149,7.4674,1797.8,1797.7,1.11236]
[1746054457458,6.3551,1797.8,1797.7,1.11236]
[1746054458040,1.11236,1797.7,1797.6,45.12019]
[1746054458346,3.53296,1797.7,1797.6,40.8]
[1746054458546,3.53296,1797.7,1797.6,1.11242]
[1746054459344,7.36096,1797.7,1797.6,1.11242]
[1746054459746,6.2486,1797.7,1797.6,1.11242]
[1746054460342,7.36096,1797.7,1797.6,1.11242]
[1746054461040,6.2486,1797.7,1797.6,1.11242]
[1746054461750,1.11242,1797.6,1797.5,41.91243]
[1746054462049,2.74022,1797.6,1797.5,41.91243]
[1746054462249,1.6278,1797.6,1797.5,41.91243]
[1746054463142,3.828,1797.6,1797.5,41.91243]
[1746054463343,3.828,1797.6,1797.5,43.62673]
[1746054464039,3.828,1797.6,1797.5,46.83453]
[1746054464249,3.828,1797.6,1797.5,41.91243]
[1746054464554,4.94042,1797.6,1797.5,41.91243]
[1746054464847,5.76722,1797.6,1797.5,41.91243]
[1746054465038,4.6548,1797.6,1797.5,41.91243]
[1746054465436,6.359,1797.6,1797.5,41.91243]
[1746054466049,7.47142,1797.6,1797.5,41.91243]
[1746054466540,6.359,1797.6,1797.5,41.91243]
[1746054467550,6.359,1797.6,1797.5,45.12023]
[1746054467850,6.359,1797.6,1797.5,41.91243]
[1746054468249,3.828,1797.6,1797.5,45.12023]
[1746054468449,3.828,1797.6,1797.5,45.93253]
[1746054469048,3.828,1797.6,1797.5,47.54953]
[1746054469651,3.828,1797.6,1797.5,52.54953]
[1746054469951,3.83291873,1797.6,1797.5,52.54953]
[1746054472152,3.83291873,1797.6,1797.5,47.54953]
[1746054475150,3.83291873,1797.6,1797.5,46.73723]
[1746054476141,5.42411873,1797.6,1797.5,46.73723]
[1746054477551,5.42411873,1797.6,1797.5,45.12023]
[1746054479554,5.42411873,1797.6,1797.5,41.91243]
[1746054481347,5.42411873,1797.6,1797.5,45.12023]
[1746054482856,5.42411873,1797.6,1797.5,41.91243]
[1746054486457,5.42411873,1797.6,1797.3,1.11255]
[1746054486661,1.11256,1797.4,1797.3,1.11255]
[1746054486961,3.61223,1797.5,1797.4,1.11255]
[1746054487162,1.90143,1797.5,1797.4,1.11255]
[1746054487354,0.7889,1797.5,1797.4,1.11255]
[1746054487554,1.90138,1797.5,1797.4,1.11255]
[1746054488060,5.72938,1797.5,1797.4,1.11255]
[1746054489362,1.11255,1797.4,1797.3,41.91256]
[1746054489559,0.8372,1797.4,1797.3,41.91256]
[1746054490061,1.94975,1797.4,1797.3,41.91256]
[1746054490262,5.77775,1797.4,1797.3,41.91256]
[1746054490658,4.6652,1797.4,1797.3,41.91256]
[1746054492556,5.77775,1797.4,1797.3,41.91256]
[1746054496765,1.11267,1797.3,1797.1,2.78182]
[1746054496972,0.7907,1797.2,1797.1,1.11273]
[1746054497365,0.7907,1797.2,1797.1,41.91273]
[1746054498269,4.6187,1797.2,1797.1,41.91273]
[1746054499971,6.1967,1797.2,1797.1,41.91273]
[1746054502873,6.1967,1797.2,1797.1,43.65203]
[1746054504275,4.6187,1797.2,1797.1,43.65203]
[1746054504772,4.6187,1797.2,1797.1,46.85983]
[1746054506873,4.6187,1797.2,1797.1,47.72933]
[1746054507577,6.2861,1797.2,1797.1,47.72933]
[1746054508070,6.2861,1797.2,1797.1,46.85983]
[1746054514677,6.2861,1797.2,1797.1,45.12053]
[1746054514875,1.11289,1796.9,1796.8,1.11288]
[1746054515079,1.11284,1797.0,1796.9,1.11284]
[1746054515281,2.71254,1797.0,1796.9,1.11284]
[1746054516183,6.54054,1797.0,1796.9,1.11284]
[1746054516681,5.4277,1797.0,1796.9,1.11284]
[1746054516982,6.54049,1797.0,1796.9,1.11284]
[1746054525199,5.4277,1797.0,1796.9,1.11284]
[1746054525387,3.828,1797.0,1796.9,2.80844]
[1746054525590,3.828,1797.0,1796.9,3.66824]
[1746054527098,4.94079,1797.0,1796.9,3.66824]
[1746054527300,4.94079,1797.0,1796.9,2.80844]
[1746054527496,6.66659,1797.0,1796.9,2.80844]
[1746054528993,7.53869,1797.0,1796.9,2.80844]
[1746054529798,6.4259,1797.0,1796.9,2.80844]
[1746054530000,7.53869,1797.0,1796.9,2.80844]
[1746054530799,7.53869,1797.0,1796.9,43.60844]
[1746054530999,6.4259,1797.0,1796.9,43.60844]
[1746054533999,3.828,1797.0,1796.9,43.60844]
[1746054534202,3.828,1797.0,1796.9,44.41954]
[1746054541502,2.68009,1797.0,1796.9,44.41954]
[1746054541999,1.45819,1797.0,1796.9,49.41954]
[1746054543307,1e-05,1797.0,1796.9,49.41954]
[1746054544508,1e-05,1797.0,1796.9,43.60844]
[1746054545009,1.60261,1797.0,1796.9,43.60844]
[1746054545821,1.60261,1797.0,1796.9,41.91284]
[1746054549014,1.60647601,1797.0,1796.9,41.91284]
[1746054554815,1.60647601,1797.0,1796.9,43.51594]
[1746054559414,1.60647601,1797.0,1796.9,46.72374]
[1746054566323,1.60647601,1797.0,1796.9,43.51594]
[1746054566624,1.60647601,1797.0,1796.9,46.72374]
[1746054571422,1.60647601,1797.0,1796.9,43.51594]
[1746054571726,1.60647601,1797.0,1796.9,46.72374]
[1746054574127,20.63609339,1798.2,1796.9,45.6109]
[1746054574331,13.58577339,1798.2,1798.1,4.31991]
[1746054574634,1.6751,1798.8,1798.3,1.11199]
[1746054574930,1.6751,1798.8,1798.3,45.11979]
[1746054575131,22.38376971,1798.4,1798.3,45.11979]
[1746054575734,22.38376971,1798.4,1798.3,44.0078]
[1746054577033,22.38376971,1798.4,1798.3,45.11979]
[1746054577226,22.38376971,1798.4,1798.3,44.0078]
[1746054577833,22.38376971,1798.4,1798.3,45.11979]
[1746054578234,3.828,1798.4,1798.3,45.11979]
[1746054579133,3.828,1798.4,1798.3,44.0078]
[1746054579632,3.828,1798.4,1798.3,45.11979]
[1746054580337,3.828,1798.4,1798.3,44.0078]
[1746054580528,4.93993,1798.4,1798.3,44.0078]
[1746054580728,9.93993,1798.4,1798.3,3.2078]
[1746054580931,8.828,1798.4,1797.8,3.2078]
[1746054581133,1.11219,1798.0,1797.8,4.32008]
[1746054581436,2.4678,1797.9,1797.8,45.12008]
[1746054581636,3.58004,1797.9,1797.8,3.2078]
[1746054582340,1.11239,1797.7,1797.5,4.32024]
[1746054582639,1.638,1797.6,1797.5,4.32024]
[1746054583338,5.466,1797.6,1797.5,45.12024]
[1746054590434,6.57842,1797.6,1797.5,4.32024]
[1746054591038,6.57842,1797.6,1797.5,45.12024]
[1746054591444,6.57842,1797.6,1797.5,41.91244]
[1746054591941,5.466,1797.6,1797.5,41.91244]
[1746054592142,6.57842,1797.6,1797.5,41.91244]
[1746054592930,6.57842,1797.6,1797.5,1.11244]
[1746054594042,3.828,1797.6,1797.5,1.11244]
[1746054594247,3.828,1797.6,1797.5,4.32024]
[1746054594436,5.5662,1797.6,1797.5,4.32024]
[1746054597542,6.67862,1797.6,1797.5,4.32024]
[1746054597842,5.5662,1797.6,1797.5,4.32024]
[1746054598845,6.67862,1797.6,1797.5,4.32024]
[1746054599343,5.5662,1797.6,1797.5,4.32024]
[1746054601837,5.5662,1797.6,1797.5,5.90614]
[1746054602040,3.828,1797.6,1797.5,5.90614]
[1746054602444,3.828,1797.6,1797.5,10.90614]
[1746054603244,3.828,1797.6,1797.5,5.90614]
[1746054604946,3.828,1797.6,1797.5,46.70614]
[1746054605644,0.02013,1798.5,1798.4,1.11193]
[1746054605948,0.02013,1798.5,1797.6,8.3431]
[1746054605949,4.47623,1798.5,1798.3,1.11194]
[1746054606245,9.41615,1798.5,1798.4,1.11193]
[1746054607553,11.05865,1798.5,1798.4,1.11193]
[1746054611450,1.11193,1798.4,1798.3,4.31976]
[1746054611747,2.70153,1798.4,1798.3,4.31976]
[1746054612148,6.52953,1798.4,1798.3,4.31976]
[1746054613848,6.52953,1798.4,1798.3,1.11196]
[1746054616054,5.4176,1798.4,1798.3,1.11196]
[1746054616351,6.52953,1798.4,1798.3,1.11196]
[1746054616849,1.11199,1798.3,1798.2,41.912]
[1746054617146,1.11205,1798.2,1798.1,4.31987]
[1746054617346,4.75505,1798.2,1798.1,3.2078]
[1746054617652,6.48655,1798.2,1798.1,3.2078]
[1746054617949,8.5823,1798.2,1797.9,1.11219]
[1746054618141,1.11224,1798.0,1797.9,1.11219]
[1746054618544,2.5221,1798.0,1797.9,1.11219]
[1746054618755,2.5221,1798.0,1797.9,4.31999]
[1746054619256,6.3501,1798.0,1797.9,4.31999]
[1746054620455,7.46228,1798.0,1797.9,4.31999]
[1746054622553,6.3501,1798.0,1797.9,4.31999]
[1746054622749,0.44270194,1798.9,1798.4,9.246]
[1746054623054,0.27803336,1799.0,1798.9,1.11162]
[1746054623254,0.27803336,1799.0,1798.9,41.91162]
[1746054623449,3.36e-06,1799.0,1798.9,46.91162]
[1746054623750,20.22376971,1799.2,1799.1,1.1115]
[1746054623947,18.55576971,1799.2,1799.1,4.3193]
[1746054624149,18.55576971,1799.2,1799.1,9.3193]
[1746054624150,22.38376971,1799.2,1799.1,9.3193]
[1746054624655,22.38376971,1799.2,1799.1,45.1193]
[1746054624858,24.05176971,1799.2,1799.1,45.1193]
[1746054625356,22.38376971,1799.2,1799.1,45.1193]
[1746054627654,3.828,1799.2,1799.1,45.1193]
[1746054627856,2.65348,1799.2,1799.1,50.1193]
[1746054628158,1.668,1799.6,1799.2,1.11143]
[1746054628355,1.668,1799.6,1799.2,2.85333]
[1746054628559,1.668,1799.6,1799.2,7.85333]
[1746054629157,2.77919,1799.6,1799.2,7.85333]
[1746054629356,2.77919,1799.6,1799.2,2.85333]
[1746054629549,1.668,1799.6,1799.2,2.85333]
[1746054629961,1.668,1799.6,1799.2,2.84947345]
[1746054630263,2.47775,1799.3,1799.2,7.84947345]
[1746054630954,0.0985,1799.3,1799.2,7.84947345]
[1746054631153,1.6131,1799.8,1799.7,1.11112]
[1746054631456,1.6131,1799.8,1799.7,4.31892]
[1746054632255,5.4411,1799.8,1799.7,4.31892]
[1746054633062,5.4411,1799.8,1799.5,3.2078]
[1746054633255,1.11116,1799.7,1799.5,1.11122]
[1746054633455,1.6207,1799.6,1799.5,1.11122]
[1746054633962,2.73189,1799.6,1799.5,4.31902]
[1746054634263,6.55989,1799.6,1799.5,3.2078]
[1746054635052,6.55989,1799.6,1799.5,4.31905]
[1746054635464,6.55989,1799.6,1799.5,3.2078]
[1746054635763,1.11125,1799.5,1799.4,1.11127]
[1746054635963,2.84535,1799.5,1799.4,1.11127]
[1746054636157,6.67335,1799.5,1799.4,1.11127]
[1746054636565,6.67339,1799.5,1799.4,1.11131]
[1746054640864,1.11131,1799.4,1799.3,3.2078]
[1746054641165,3.54811,1799.4,1799.3,3.2078]
[1746054641757,7.34311,1799.4,1799.3,3.2078]
[1746054642264,11.17111,1799.4,1799.3,3.2078]
[1746054642564,11.17111,1799.4,1799.3,4.31917]
[1746054642864,11.17111,1799.4,1799.3,3.2078]
[1746054645266,11.17111,1799.4,1799.3,4.31917]
[1746054645870,11.17111,1799.4,1799.3,3.2078]
[1746054646864,3.828,1799.4,1799.3,4.31917]